fUST/lending_fUST_20241212
["ID","MTS","AMOUNT","RATE_DAILY","PERIOD"]
[345069345,1733975433121,-2720.2488143,0.00026892,2]
[345070691,1733975640151,166.60285,0.00013973,2]
[345070745,1733976621820,167.585201,0.00013973,2]
[345070775,1733976631874,-559.85300787,0.0002355,2]
[345070777,1733976631884,-451.7226509,0.00024432,2]
[345070780,1733976631895,-1914.1554359,0.00024565,2]
[345070782,1733976631905,-194.014444,0.00024655,2]
[345070783,1733976631914,-380.0,0.00024764,2]
[345070785,1733976631923,-42210.26867288,0.00025481,2]
[345071348,1733976642998,-1722.825,0.00025481,2]
[345071776,1733977624870,168.284676,0.00013973,2]
[345071874,1733977838115,-234.80570476,0.00024,7]
[345071875,1733977838125,-1841.67827131,0.00024334,2]
[345071876,1733977838135,-300.0,0.0002458,2]
[345071877,1733977838143,-300.0,0.0002458,2]
[345071878,1733977838155,-8774.96457812,0.00024581,2]
[345071879,1733977838170,-1425.96778772,0.00024581,2]
[345071880,1733977838182,-10377.52567871,0.00024581,2]
[345071881,1733977838197,-4321.54195545,0.00024581,2]
[345071882,1733977838206,-180.4803606,0.00024771,2]
[345071883,1733977838215,-582.19606495,0.00024935,2]
[345071884,1733977838224,-11151.25711497,0.00025,2]
[345071885,1733977838234,-194.014445,0.00025043,2]
[345071886,1733977838244,-5412.7802542,0.00025164,2]
[345071887,1733977838253,-27718.34542351,0.00025323,2]
[345071888,1733977838265,-296.88015065,0.00025323,2]
[345071889,1733977838274,-582.19606488,0.00025625,2]
[345071890,1733977838287,-373.646804,0.00025844,2]
[345071891,1733977838297,-175.132,0.00025844,11]
[345071892,1733977838306,-12044.0,0.00026,7]
[345071893,1733977838315,-151.0,0.00026,7]
[345071894,1733977838324,-151.0,0.00026,7]
[345071895,1733977838333,-151.0,0.00026,7]
[345071896,1733977838342,-151.0,0.00026,7]
[345071897,1733977838352,-418.979096,0.00026,7]
[345071898,1733977838361,-418.979096,0.00026,7]
[345071899,1733977838370,-348.972538,0.00026,7]
[345071900,1733977838379,-348.972538,0.00026,7]
[345071901,1733977838388,-151.0,0.00026,7]
[345071902,1733977838397,-246.119534,0.00026,7]
[345071903,1733977838406,-168.46411767,0.00026,7]
[345071927,1733977839961,-653.0169432,0.00025239,2]
[345072983,1733977999031,1072.94207752,0.00026,120]
[345072987,1733978570701,168.284676,0.00013973,2]
[345073042,1733979032157,-169.599394,0.00023423,2]
[345073044,1733979032167,-300.0,0.00023917,2]
[345073046,1733979032177,-300.0,0.00023917,2]
[345073048,1733979032186,-60.65805694,0.00023918,2]
[345073049,1733979032198,-7693.05471199,0.00023918,2]
[345073050,1733979032214,-12257.41662637,0.00023918,2]
[345073051,1733979032223,-221.77804,0.00023942,2]
[345073052,1733979032237,-298.917443,0.00023974,2]
[345073053,1733979032247,-168.7665701,0.00023999,2]
[345073054,1733979032256,-172.282041,0.00024674,2]
[345073055,1733979032266,-298.917443,0.00024861,2]
[345073057,1733979032275,-448.04320546,0.00024899,2]
[345073059,1733979032283,-288.85351966,0.000249,2]
[345073061,1733979032293,-267.58561717,0.00024973,2]
[345073063,1733979032303,-591.62474062,0.00024973,2]
[345073065,1733979032312,-242.62722342,0.00024973,2]
[345073067,1733979032321,-7690.87794649,0.00024997,3]
[345073069,1733979032330,-500.0,0.00024999,2]
[345073071,1733979032339,-500.0,0.00024999,2]
[345073073,1733979032349,-500.0,0.00024999,2]
[345073075,1733979032358,-500.0,0.00024999,2]
[345073077,1733979032367,-500.0,0.00024999,2]
[345073079,1733979032376,-500.0,0.00024999,2]
[345073081,1733979032385,-500.0,0.00024999,2]
[345073083,1733979032395,-500.0,0.00024999,2]
[345073085,1733979032405,-500.0,0.00024999,2]
[345073087,1733979032414,-500.0,0.00024999,2]
[345073089,1733979032424,-500.0,0.00024999,2]
[345073091,1733979032433,-500.0,0.00024999,2]
[345073093,1733979032442,-500.0,0.00024999,2]
[345073095,1733979032451,-500.0,0.00024999,2]
[345073097,1733979032461,-500.0,0.00024999,2]
[345073099,1733979032470,-500.0,0.00024999,2]
[345073101,1733979032485,-500.0,0.00024999,2]
[345073103,1733979032495,-500.0,0.00024999,2]
[345073105,1733979032504,-500.0,0.00024999,2]
[345073107,1733979032513,-500.0,0.00024999,2]
[345073109,1733979032523,-626.12357752,0.00024999,2]
[345073111,1733979032532,-500.0,0.00024999,2]
[345073113,1733979032541,-285.38310128,0.00024999,2]
[345073114,1733979032551,-550.5869851,0.00024999,2]
[345073115,1733979032561,-500.0,0.00024999,2]
[345073116,1733979032571,-500.0,0.00024999,2]
[345073117,1733979032580,-398.71020538,0.00024999,2]
[345073118,1733979032589,-500.0,0.00024999,2]
[345073119,1733979032599,-500.0,0.00024999,2]
[345073120,1733979032609,-500.0,0.00024999,2]
[345073121,1733979032619,-500.0,0.00024999,2]
[345073122,1733979032628,-500.0,0.00024999,2]
[345073123,1733979032638,-500.0,0.00024999,2]
[345073124,1733979032648,-500.0,0.00024999,2]
[345073125,1733979032657,-500.0,0.00024999,2]
[345073126,1733979032667,-500.0,0.00024999,2]
[345073127,1733979032677,-500.0,0.00024999,2]
[345073128,1733979032687,-500.0,0.00024999,2]
[345073129,1733979032697,-500.0,0.00024999,2]
[345073130,1733979032707,-500.0,0.00024999,2]
[345073131,1733979032717,-500.0,0.00024999,2]
[345073132,1733979032730,-500.0,0.00024999,2]
[345073133,1733979032741,-205.52532101,0.00024999,2]
[345073134,1733979032750,-500.0,0.00024999,2]
[345073135,1733979032760,-500.0,0.00024999,2]
[345073136,1733979032770,-500.0,0.00024999,2]
[345073137,1733979032779,-500.0,0.00024999,2]
[345073138,1733979032789,-500.0,0.00024999,2]
[345073139,1733979032798,-500.0,0.00024999,2]
[345073140,1733979032808,-500.0,0.00024999,2]
[345073141,1733979032818,-500.0,0.00024999,2]
[345073142,1733979032827,-500.0,0.00024999,2]
[345073143,1733979032836,-500.0,0.00024999,2]
[345073144,1733979032846,-377.081186,0.00024999,7]
[345073145,1733979032856,-563.127914,0.00024999,7]
[345073146,1733979032866,-563.127914,0.00024999,7]
[345073147,1733979032876,-151.0,0.00024999,7]
[345073148,1733979032885,-225.390352,0.00024999,7]
[345073149,1733979032894,-225.390352,0.00024999,7]
[345073150,1733979032904,-151.0,0.00024999,7]
[345073151,1733979032914,-151.0,0.00024999,7]
[345073152,1733979032923,-180.651387,0.00024999,7]
[345073153,1733979032932,-180.651387,0.00024999,7]
[345073154,1733979032942,-151.0,0.00024999,7]
[345073155,1733979032951,-151.0,0.00024999,7]
[345073156,1733979032961,-180.651387,0.00024999,7]
[345073157,1733979032970,-180.651387,0.00024999,7]
[345073158,1733979032985,-922.809378,0.00024999,7]
[345073159,1733979032995,-151.0,0.00024999,7]
[345073160,1733979033005,-922.809378,0.00024999,7]
[345073161,1733979033014,-151.0,0.00024999,7]
[345073162,1733979033025,-151.0,0.00024999,7]
[345073163,1733979033034,-152.6824,0.00024999,7]
[345073164,1733979033044,-151.0,0.00024999,7]
[345073165,1733979033054,-151.0,0.00024999,7]
[345073166,1733979033064,-151.0,0.00024999,7]
[345073167,1733979033075,-151.0,0.00024999,7]
[345073168,1733979033086,-151.0,0.00024999,7]
[345073169,1733979033096,-151.0,0.00024999,7]
[345073170,1733979033106,-151.0,0.00024999,7]
[345073171,1733979033117,-151.0,0.00024999,7]
[345073172,1733979033127,-793.977653,0.00024999,7]
[345073173,1733979033138,-793.977653,0.00024999,7]
[345073174,1733979033148,-793.977653,0.00024999,7]
[345073175,1733979033159,-793.977653,0.00024999,7]
[345073176,1733979033169,-13859.17271176,0.00025,2]
[345073177,1733979033179,-296.88015065,0.00025,2]
[345073178,1733979033191,-122312.99249624,0.00025,4]
[345073670,1733979461285,168.605417,0.00013973,2]
[345073735,1733980232394,-4536.93803522,0.000234,2]
[345073737,1733980232404,-3459.9336698,0.00023874,2]
[345073739,1733980232413,-221.778041,0.00023971,2]
[345073741,1733980232422,-217.750466,0.00023999,2]
[345073742,1733980232432,-517.337,0.0002455,2]
[345073744,1733980232441,-300.0,0.00024816,2]
[345073746,1733980232451,-300.0,0.00024816,2]
[345073748,1733980232460,-5347.50331121,0.00024817,2]
[345073751,1733980232470,-217.750466,0.00024887,2]
[345073752,1733980232479,-337.08220076,0.000249,2]
[345073754,1733980232489,-572.84420381,0.00024973,2]
[345073756,1733980232498,-500.49063855,0.00024973,2]
[345073759,1733980232508,-153.797071,0.00024999,7]
[345073761,1733980232517,-153.797071,0.00024999,7]
[345073763,1733980232527,-153.797071,0.00024999,7]
[345073766,1733980232536,-153.797071,0.00024999,7]
[345073769,1733980232545,-151.196259,0.00024999,7]
[345073772,1733980232555,-377.63446726,0.00024999,2]
[345073776,1733980232566,-185.70983062,0.00024999,2]
[345073778,1733980232575,-198.37590014,0.00024999,2]
[345073781,1733980232584,-500.0,0.00024999,2]
[345073784,1733980232593,-279.65029947,0.00024999,2]
[345073787,1733980232603,-227.84299835,0.00024999,2]
[345073789,1733980232613,-500.0,0.00024999,2]
[345073792,1733980232633,-500.0,0.00024999,2]
[345073795,1733980232643,-500.0,0.00024999,2]
[345073797,1733980232654,-500.0,0.00024999,2]
[345073799,1733980232664,-500.0,0.00024999,2]
[345073801,1733980232674,-272.35036171,0.00024999,2]
[345073803,1733980232685,-500.0,0.00024999,2]
[345073805,1733980232694,-500.0,0.00024999,2]
[345073807,1733980232704,-500.0,0.00024999,2]
[345073809,1733980232714,-500.0,0.00024999,2]
[345073811,1733980232725,-500.0,0.00024999,2]
[345073813,1733980232735,-500.0,0.00024999,2]
[345073815,1733980232745,-500.0,0.00024999,2]
[345073817,1733980232756,-500.0,0.00024999,2]
[345073819,1733980232766,-500.0,0.00024999,2]
[345073821,1733980232776,-500.0,0.00024999,2]
[345073823,1733980232786,-500.0,0.00024999,2]
[345073825,1733980232796,-500.0,0.00024999,2]
[345073827,1733980232806,-500.0,0.00024999,2]
[345073829,1733980232817,-500.0,0.00024999,2]
[345073831,1733980232831,-500.0,0.00024999,2]
[345073832,1733980232841,-500.0,0.00024999,2]
[345073833,1733980232851,-500.0,0.00024999,2]
[345073834,1733980232864,-500.0,0.00024999,2]
[345073835,1733980232874,-500.0,0.00024999,2]
[345073836,1733980232885,-500.0,0.00024999,2]
[345073837,1733980232894,-500.0,0.00024999,2]
[345073838,1733980232906,-500.0,0.00024999,2]
[345073839,1733980232917,-500.0,0.00024999,2]
[345073840,1733980232928,-500.0,0.00024999,2]
[345073841,1733980232937,-500.0,0.00024999,2]
[345073842,1733980232947,-500.0,0.00024999,2]
[345073843,1733980232957,-500.0,0.00024999,2]
[345073844,1733980232967,-500.0,0.00024999,2]
[345073845,1733980232978,-500.0,0.00024999,2]
[345073846,1733980232987,-500.0,0.00024999,2]
[345073847,1733980232997,-500.0,0.00024999,2]
[345073848,1733980233007,-500.0,0.00024999,2]
[345073849,1733980233017,-600.0,0.00024999,2]
[345073850,1733980233027,-6929.58635588,0.00025,2]
[345073851,1733980233037,-27223.881116,0.00025,4]
[345073852,1733980233048,-151.0,0.00025,7]
[345073853,1733980233058,-151.0,0.00025,7]
[345073854,1733980233069,-151.485599,0.00025,7]
[345073856,1733980233079,-151.0,0.00025,7]
[345073858,1733980233090,-151.0,0.00025,7]
[345073861,1733980233100,-151.0,0.00025,7]
[345073863,1733980233110,-151.0,0.00025,7]
[345073864,1733980233129,-151.0,0.00025,7]
[345073867,1733980233140,-151.0,0.00025,7]
[345073869,1733980233151,-151.0,0.00025,7]
[345073871,1733980233161,-297.818214,0.00025,7]
[345073873,1733980233171,-151.0,0.00025,7]
[345073875,1733980233181,-151.0,0.00025,7]
[345073877,1733980233192,-151.0,0.00025,7]
[345073879,1733980233202,-151.0,0.00025,7]
[345073881,1733980233212,-151.0,0.00025,7]
[345073883,1733980233222,-151.0,0.00025,7]
[345073885,1733980233231,-153.797071,0.00025,7]
[345073887,1733980233242,-153.797071,0.00025,7]
[345073889,1733980233252,-153.797071,0.00025,7]
[345073891,1733980233262,-153.797071,0.00025,7]
[345073893,1733980233272,-153.797071,0.00025,7]
[345073895,1733980233282,-153.797071,0.00025,7]
[345073897,1733980233292,-153.797071,0.00025,7]
[345073899,1733980233303,-153.797071,0.00025,7]
[345073901,1733980233314,-118464.49571366,0.00025,2]
[345073907,1733980233370,-2970.4316817,0.00025,2]
[345074156,1733980240430,-1628.323747,0.00025,2]
[345074307,1733980385861,168.82616,0.00013973,2]
[345074309,1733980536577,250.0,0.00021,11]
[345074310,1733980549394,250.0,0.0002,4]
[345074312,1733980792835,13900.0,0.0002,2]
[345074320,1733981298806,9278.97784469,0.000125,2]
[345074324,1733981319104,807.79999891,0.0001999,2]
[345074331,1733981347051,169.003976,0.00013973,2]
[345074958,1733981443727,-298.95618344,0.00021,5]
[345074960,1733981443738,-3585.69742475,0.00023,2]
[345074962,1733981443747,-495.928,0.0002455,2]
[345074964,1733981443757,-163.312849,0.00024882,2]
[345074966,1733981443767,-300.0,0.00024999,2]
[345074968,1733981443777,-8334.88946873,0.00025,2]
[345075260,1733981446673,-8060.3239766,0.00025,2]
[345075494,1733982236342,169.003976,0.00013973,2]
[345075510,1733982632738,-198.74880277,0.00023192,2]
[345075511,1733982632747,-300.0,0.00023426,2]
[345075512,1733982632757,-8668.39544131,0.00023427,2]
[345075513,1733982632767,-475.235,0.0002375,2]
[345075514,1733982632777,-300.0,0.00023816,2]
[345075515,1733982632787,-9002.83767523,0.00023817,2]
[345075516,1733982632797,-3464.79317794,0.0002394,2]
[345075517,1733982632807,-9002.83767523,0.0002394,2]
[345075518,1733982632817,-9002.83767523,0.00024222,2]
[345075519,1733982632827,-456.7595413,0.000245,2]
[345075520,1733982632836,-9002.83767523,0.00024628,2]
[345075521,1733982632848,-153.0,0.00024752,2]
[345075522,1733982632858,-153.0,0.00024752,2]
[345075523,1733982632877,-8423.5080948,0.00024775,2]
[345075524,1733982632887,-9002.83767525,0.00024802,2]
[345075525,1733982632896,-153.0,0.000249,2]
[345075526,1733982632906,-2599.2815309,0.00024941,2]
[345075527,1733982632917,-606.48541231,0.00025,2]
[345075528,1733982632927,-151.0,0.00025,7]
[345075530,1733982632936,-185.36158,0.00025,7]
[345075532,1733982632946,-185.36158,0.00025,7]
[345075534,1733982632955,-250.0,0.00025,7]
[345075536,1733982632966,-250.0,0.00025,7]
[345075538,1733982632975,-260.0,0.00025,6]
[345075540,1733982632985,-275.0,0.00025,6]
[345075542,1733982632997,-153.0,0.00025,2]
[345075544,1733982633007,-153.0,0.00025,2]
[345075546,1733982633016,-153.0,0.00025,2]
[345075548,1733982633026,-163.312849,0.00025025,2]
[345075550,1733982633036,-157.8072261,0.000253,2]
[345075552,1733982633046,-153.0,0.000253,2]
[345075554,1733982633056,-156.03669529,0.00025471,2]
[345075556,1733982633066,-151.0,0.00025588,7]
[345075557,1733982633077,-420.0,0.00025769,2]
[345075558,1733982633087,-420.0,0.00025832,2]
[345075559,1733982633097,-618.0,0.000259,2]
[345075560,1733982633107,-151.0,0.00026,7]
[345075561,1733982633121,-180.761124,0.00026,2]
[345075562,1733982633132,-58514.0452783,0.00026,30]
[345075563,1733982633142,-1830.49813164,0.00026028,2]
[345075564,1733982633152,-228.700016,0.00026139,7]
[345075565,1733982633162,-185.36158,0.00026139,7]
[345075566,1733982633172,-185.36158,0.00026139,7]
[345075567,1733982633182,-151.0,0.00026139,7]
[345075568,1733982633192,-3023.42062172,0.0002639,2]
[345075569,1733982633203,-3302.803364,0.00026395,2]
[345075570,1733982633212,-252.922154,0.00026548,7]
[345075571,1733982633222,-159.81156652,0.00026796,120]
[345075572,1733982633232,-300.0,0.000268,7]
[345075573,1733982633242,-185.36158,0.0002681,7]
[345075574,1733982633252,-185.36158,0.0002681,7]
[345075575,1733982633262,-151.0,0.0002681,7]
[345075576,1733982633272,-163.312849,0.00026877,2]
[345075577,1733982633282,-500.0,0.00027,120]
[345075578,1733982633292,-7873.91720867,0.00027,2]
[345075579,1733982633302,-151.0,0.00027396,7]
[345075580,1733982633311,-151.0,0.00027397,7]
[345075581,1733982633321,-185.36158,0.00027397,7]
[345075582,1733982633331,-185.36158,0.00027397,7]
[345075583,1733982633340,-185.36158,0.00027397,7]
[345075584,1733982633350,-185.36158,0.00027397,7]
[345075585,1733982633360,-151.0,0.00027397,7]
[345075586,1733982633373,-150.708,0.00027436,2]
[345075587,1733982633383,-535.472,0.00027436,2]
[345075588,1733982633392,-2160.0,0.00027436,2]
[345075589,1733982633403,-2370.0,0.00027436,2]
[345075590,1733982633412,-150.262,0.00027436,2]
[345075591,1733982633422,-1026.0,0.00027608,15]
[345075592,1733982633432,-170.747862,0.00027671,7]
[345075593,1733982633442,-506.815122,0.00027671,7]
[345075594,1733982633452,-506.815122,0.00027671,7]
[345075595,1733982633462,-186.481839,0.00027671,2]
[345075596,1733982633473,-186.481839,0.00027671,31]
[345075597,1733982633483,-186.481839,0.00027671,61]
[345075598,1733982633493,-186.481839,0.00027671,90]
[345075599,1733982633503,-186.481839,0.00027671,120]
[345075600,1733982633513,-268.23819,0.00027678,7]
[345075601,1733982633523,-151.0,0.00027799,7]
[345075602,1733982633532,-185.36158,0.00027799,7]
[345075603,1733982633542,-185.36158,0.00027799,7]
[345075604,1733982633552,-151.0,0.00027799,7]
[345075605,1733982633567,-151.0,0.00027905,7]
[345075606,1733982633584,-151.0,0.00027905,7]
[345075607,1733982633597,-168.97751,0.00027938,7]
[345075608,1733982633610,-168.97751,0.00027938,7]
[345075609,1733982633623,-151.0,0.00027938,7]
[345075610,1733982633634,-164.84944316,0.00027973,5]
[345075611,1733982633646,-151.0,0.00027998,7]
[345075612,1733982633657,-185.36158,0.00027998,7]
[345075613,1733982633667,-185.36158,0.00027998,7]
[345075614,1733982633681,-189.761385,0.00027998,7]
[345075615,1733982633691,-151.0,0.00027998,7]
[345075616,1733982633701,-151.0,0.00027999,7]
[345075617,1733982633711,-515.36159971,0.00027999,2]
[345075618,1733982633721,-506.815122,0.00027999,7]
[345075619,1733982633731,-506.815122,0.00027999,7]
[345075620,1733982633741,-1000.0,0.00028,120]
[345075621,1733982633752,-151.0,0.00028,7]
[345075622,1733982633763,-185.36158,0.00028,7]
[345075623,1733982633774,-185.36158,0.00028,7]
[345075624,1733982633784,-153.447298,0.00028,7]
[345075625,1733982633795,-151.0,0.00028,7]
[345075626,1733982633806,-151.0,0.00028,7]
[345075627,1733982633816,-168.97751,0.00028,7]
[345075628,1733982633826,-168.97751,0.00028,7]
[345075629,1733982633837,-168.97751,0.00028,7]
[345075630,1733982633847,-168.97751,0.00028,7]
[345075631,1733982633857,-153.827104,0.00028,7]
[345075632,1733982633870,-151.0,0.00028,7]
[345075633,1733982633881,-151.0,0.00028,7]
[345075634,1733982633891,-151.0,0.00028,7]
[345075635,1733982633901,-151.0,0.00028,7]
[345075636,1733982633911,-151.0,0.00028,7]
[345075637,1733982633922,-151.0,0.00028,7]
[345075638,1733982633932,-151.0,0.00028,7]
[345075639,1733982633942,-151.0,0.00028,7]
[345075640,1733982633952,-151.0,0.00028,7]
[345075641,1733982633963,-635.182122,0.00028,7]
[345075642,1733982633973,-635.182122,0.00028,7]
[345075643,1733982633985,-635.182122,0.00028,7]
[345075644,1733982633995,-635.182122,0.00028,7]
[345075645,1733982634006,-151.0,0.00028,7]
[345075646,1733982634017,-151.0,0.00028,7]
[345075647,1733982634028,-151.0,0.00028,7]
[345075648,1733982634039,-151.0,0.00028,7]
[345075649,1733982634049,-151.0,0.00028,7]
[345075650,1733982634060,-151.0,0.00028,7]
[345075651,1733982634071,-151.0,0.00028,7]
[345075652,1733982634083,-151.0,0.00028,7]
[345075653,1733982634094,-153.476064,0.00028,7]
[345075654,1733982634105,-151.0,0.00028,7]
[345075655,1733982634116,-151.0,0.00028,7]
[345075656,1733982634129,-151.0,0.00028,7]
[345075657,1733982634141,-151.0,0.00028,7]
[345075658,1733982634152,-151.0,0.00028,7]
[345075659,1733982634165,-151.0,0.00028,7]
[345075660,1733982634176,-151.0,0.00028,7]
[345075661,1733982634186,-151.0,0.00028,7]
[345075662,1733982634197,-180.883694,0.00028,7]
[345075663,1733982634207,-180.883694,0.00028,7]
[345075664,1733982634218,-180.883694,0.00028,7]
[345075665,1733982634229,-180.883694,0.00028,7]
[345075666,1733982634239,-358.227127,0.00028,7]
[345075667,1733982634249,-358.227127,0.00028,7]
[345075668,1733982634259,-358.227127,0.00028,7]
[345075669,1733982634268,-358.227127,0.00028,7]
[345075670,1733982634279,-151.0,0.00028,7]
[345075671,1733982634289,-151.0,0.00028,7]
[345075672,1733982634300,-314.075284,0.00028,7]
[345075673,1733982634310,-314.075284,0.00028,7]
[345075674,1733982634320,-314.075284,0.00028,7]
[345075675,1733982634330,-314.075284,0.00028,7]
[345075676,1733982634341,-276.125085,0.00028,7]
[345075677,1733982634351,-151.0,0.00028,7]
[345075678,1733982634362,-151.0,0.00028,7]
[345075679,1733982634374,-151.0,0.00028,7]
[345075680,1733982634384,-323.681618,0.00028,7]
[345075681,1733982634396,-323.681618,0.00028,7]
[345075682,1733982634406,-323.681618,0.00028,7]
[345075683,1733982634417,-323.681618,0.00028,7]
[345075684,1733982634427,-151.0,0.00028,7]
[345075685,1733982634438,-234.864863,0.00028,7]
[345075686,1733982634448,-234.864863,0.00028,7]
[345075687,1733982634459,-636.336551,0.00028,7]
[345075688,1733982634470,-636.336551,0.00028,7]
[345075689,1733982634479,-636.336551,0.00028,7]
[345075690,1733982634490,-636.336551,0.00028,7]
[345075691,1733982634500,-151.0,0.00028,7]
[345075692,1733982634510,-152.513849,0.00028,7]
[345075693,1733982634520,-151.0,0.00028,7]
[345075694,1733982634530,-467.403177,0.00028,7]
[345075695,1733982634540,-467.403177,0.00028,7]
[345075696,1733982634551,-467.403177,0.00028,7]
[345075697,1733982634562,-467.403177,0.00028,7]
[345075698,1733982634574,-433.57465,0.00028,7]
[345075699,1733982634584,-433.57465,0.00028,7]
[345075700,1733982634595,-830.52844,0.00028,7]
[345075701,1733982634606,-830.52844,0.00028,7]
[345075702,1733982634786,-92918.0,0.00028,2]
[345075703,1733982634796,-506.815122,0.00028,7]
[345075704,1733982634806,-506.815122,0.00028,7]
[345075705,1733982634816,-506.815122,0.00028,7]
[345075706,1733982634826,-506.815122,0.00028,7]
[345075707,1733982634835,-587.0,0.00028019,2]
[345075708,1733982634846,-269.6657606,0.00028036,2]
[345075709,1733982634856,-500.0,0.0002828,120]
[345075710,1733982634869,-500.0,0.0002828,120]
[345075711,1733982634880,-611.79,0.0002828,120]
[345075712,1733982634890,-269.66576058,0.00028322,2]
[345075713,1733982634900,-587.0,0.00028345,2]
[345075714,1733982634911,-68003.8675618,0.000285,2]
[345075715,1733982634920,-151.0,0.000285,7]
[345075716,1733982634930,-185.36158,0.000285,7]
[345075717,1733982634939,-185.36158,0.000285,7]
[345075718,1733982634949,-151.0,0.000285,7]
[345075719,1733982634959,-168.97751,0.000285,7]
[345075720,1733982634968,-168.97751,0.000285,7]
[345075721,1733982634978,-151.0,0.000285,7]
[345075722,1733982634987,-251.57313,0.000285,7]
[345075723,1733982634996,-151.0,0.000285,7]
[345075724,1733982635005,-151.0,0.000285,7]
[345075725,1733982635014,-151.0,0.000285,7]
[345075726,1733982635024,-635.182122,0.000285,7]
[345075727,1733982635033,-635.182122,0.000285,7]
[345075728,1733982635042,-151.0,0.000285,7]
[345075729,1733982635052,-151.0,0.000285,7]
[345075730,1733982635061,-151.0,0.000285,7]
[345075731,1733982635071,-151.0,0.000285,7]
[345075732,1733982635080,-151.0,0.000285,7]
[345075733,1733982635089,-151.0,0.000285,7]
[345075734,1733982635099,-151.0,0.000285,7]
[345075735,1733982635109,-151.0,0.000285,7]
[345075736,1733982635122,-180.883694,0.000285,7]
[345075737,1733982635131,-180.883694,0.000285,7]
[345075738,1733982635140,-358.227127,0.000285,7]
[345075739,1733982635150,-358.227127,0.000285,7]
[345075740,1733982635160,-151.0,0.000285,7]
[345075741,1733982635169,-314.075284,0.000285,7]
[345075742,1733982635179,-314.075284,0.000285,7]
[345075743,1733982635188,-157.763299,0.000285,7]
[345075744,1733982635197,-151.0,0.000285,7]
[345075745,1733982635207,-323.681618,0.000285,7]
[345075746,1733982635216,-323.681618,0.000285,7]
[345075747,1733982635225,-151.0,0.000285,7]
[345075748,1733982635235,-178.88193926,0.000285,5]
[345075749,1733982635244,-234.864863,0.000285,7]
[345075750,1733982635253,-234.864863,0.000285,7]
[345075751,1733982635263,-636.336551,0.000285,7]
[345075752,1733982635272,-636.336551,0.000285,7]
[345075753,1733982635281,-151.0,0.000285,7]
[345075754,1733982635290,-467.403177,0.000285,7]
[345075755,1733982635299,-467.403177,0.000285,7]
[345075756,1733982635308,-433.57465,0.000285,7]
[345075757,1733982635318,-433.57465,0.000285,7]
[345075758,1733982635327,-830.52844,0.000285,7]
[345075759,1733982635336,-830.52844,0.000285,7]
[345075760,1733982635346,-506.815122,0.000285,7]
[345075761,1733982635355,-506.815122,0.000285,7]
[345075762,1733982635366,-269.66576058,0.00028608,2]
[345075763,1733982635377,-504.71471928,0.00028625,5]
[345075764,1733982635386,-500.0,0.00028625,5]
[345075765,1733982635395,-432.83148923,0.00028625,2]
[345075766,1733982635406,-601.67253147,0.00028668,2]